[Event "*** Titled Tuesday Blitz"]
[Site "Chess.com"]
[Date "2019.07.02"]
[Round "2"]
[White "Andrii_Prydun"]
[Black "Warerman"]
[Result "1/2-1/2"]
[WhiteElo "2301"]
[BlackElo "2433"]
[TimeControl "180+2"]
[EndTime "13:24:51 PDT"]
[Termination "Game drawn - insufficient material"]

1. e4 {[%clk 0:03:01.9]} 1... c6 {[%clk 0:02:59.9]} 2. Nf3 {[%clk 0:02:55.3]}
2... d5 {[%clk 0:03:00.8]} 3. Nc3 {[%clk 0:02:56.1]} 3... Bg4 {[%clk 0:03:01.2]}
4. h3 {[%clk 0:02:57.5]} 4... Bxf3 {[%clk 0:03:01.5]} 5. Qxf3 {[%clk 0:02:58.8]}
5... e6 {[%clk 0:03:03.4]} 6. d4 {[%clk 0:02:59.7]} 6... dxe4 {[%clk 0:03:03.5]}
7. Qxe4 {[%clk 0:02:57.5]} 7... Nf6 {[%clk 0:03:03.8]} 8. Qd3 {[%clk 0:02:57.3]}
8... Nbd7 {[%clk 0:03:03.2]} 9. Be2 {[%clk 0:02:57.7]} 9... Bd6 {[%clk
0:03:00.4]} 10. Bg5 {[%clk 0:02:54.3]} 10... h6 {[%clk 0:03:00.6]} 11. Bh4
{[%clk 0:02:55]} 11... Qc7 {[%clk 0:03:00.7]} 12. Ne4 {[%clk 0:02:53.2]} 12...
Nxe4 {[%clk 0:02:49.7]} 13. Qxe4 {[%clk 0:02:53.2]} 13... g5 {[%clk 0:02:50.6]}
14. Bg3 {[%clk 0:02:36.8]} 14... Bxg3 {[%clk 0:02:50.8]} 15. fxg3 {[%clk
0:02:37.7]} 15... Qxg3+ {[%clk 0:02:52.7]} 16. Kf1 {[%clk 0:02:26.2]} 16... Nf6
{[%clk 0:02:45.5]} 17. Qf3 {[%clk 0:02:26.4]} 17... Qxf3+ {[%clk 0:02:29.4]} 18.
Bxf3 {[%clk 0:02:28.3]} 18... O-O-O {[%clk 0:02:30.4]} 19. c3 {[%clk 0:02:28.5]}
19... Nd5 {[%clk 0:02:28.4]} 20. Re1 {[%clk 0:02:28.1]} 20... Kc7 {[%clk
0:02:24.4]} 21. Kf2 {[%clk 0:02:28.6]} 21... Nf4 {[%clk 0:02:24.4]} 22. Re3
{[%clk 0:02:28.7]} 22... c5 {[%clk 0:02:01.3]} 23. g3 {[%clk 0:02:03.1]} 23...
cxd4 {[%clk 0:02:01.2]} 24. cxd4 {[%clk 0:02:03.2]} 24... Nd5 {[%clk 0:02:00.4]}
25. Rc1+ {[%clk 0:02:01.6]} 25... Kb8 {[%clk 0:01:56.2]} 26. Rb3 {[%clk
0:02:00.9]} 26... Rc8 {[%clk 0:01:55.6]} 27. Rc5 {[%clk 0:01:40.2]} 27... Rxc5
{[%clk 0:01:39.4]} 28. dxc5 {[%clk 0:01:40.1]} 28... Rc8 {[%clk 0:01:41.3]} 29.
Bxd5 {[%clk 0:01:37.9]} 29... exd5 {[%clk 0:01:41.7]} 30. Rc3 {[%clk 0:01:38.2]}
30... Kc7 {[%clk 0:01:40.6]} 31. Rf3 {[%clk 0:01:32]} 31... Kb8 {[%clk
0:01:15.4]} 32. b4 {[%clk 0:01:28.1]} 32... Rc7 {[%clk 0:01:11.4]} 33. Rf6
{[%clk 0:01:26.1]} 33... a5 {[%clk 0:01:12.1]} 34. a3 {[%clk 0:01:25]} 34...
axb4 {[%clk 0:01:12.5]} 35. axb4 {[%clk 0:01:25.6]} 35... Re7 {[%clk 0:01:12.8]}
36. Rxh6 {[%clk 0:01:17]} 36... Re4 {[%clk 0:01:13.9]} 37. Rd6 {[%clk
0:01:10.3]} 37... Rxb4 {[%clk 0:01:14.5]} 38. Rxd5 {[%clk 0:01:11]} 38... f6
{[%clk 0:01:15.8]} 39. Rf5 {[%clk 0:01:05.7]} 39... Rc4 {[%clk 0:01:16]} 40. Kf3
{[%clk 0:00:54.2]} 40... Kc7 {[%clk 0:01:16.6]} 41. Rxf6 {[%clk 0:00:49.5]}
41... Rxc5 {[%clk 0:01:17.9]} 42. Kg4 {[%clk 0:00:50.3]} 42... b5 {[%clk
0:01:15.9]} 43. h4 {[%clk 0:00:23.6]} 43... gxh4 {[%clk 0:01:17.8]} 44. gxh4
{[%clk 0:00:25]} 44... b4 {[%clk 0:01:17]} 45. h5 {[%clk 0:00:23]} 45... b3
{[%clk 0:01:15.3]} 46. Rf1 {[%clk 0:00:19]} 46... Rb5 {[%clk 0:01:13.2]} 47. h6
{[%clk 0:00:18.4]} 47... Kc6 {[%clk 0:00:54.6]} 48. h7 {[%clk 0:00:17.2]} 48...
Rb8 {[%clk 0:00:54.5]} 49. Kg5 {[%clk 0:00:18]} 49... Kc5 {[%clk 0:00:54.1]} 50.
Kg6 {[%clk 0:00:16]} 50... Kc4 {[%clk 0:00:51.5]} 51. Kg7 {[%clk 0:00:13.6]}
51... b2 {[%clk 0:00:48.8]} 52. Rb1 {[%clk 0:00:08.6]} 52... Kc3 {[%clk
0:00:47.6]} 53. h8=Q {[%clk 0:00:07.2]} 53... Rxh8 {[%clk 0:00:48.1]} 54. Kxh8
{[%clk 0:00:08.2]} 54... Kc2 {[%clk 0:00:50]} 55. Rxb2+ {[%clk 0:00:08.9]} 55...
Kxb2 {[%clk 0:00:50.7]} 1/2-1/2

[Event "*** Titled Tuesday Blitz"]
[Site "Chess.com"]
[Date "2019.07.02"]
[Round "2"]
[White "Roenko_Artur"]
[Black "King_of_the_wing"]
[Result "1-0"]
[WhiteElo "2257"]
[BlackElo "2152"]
[TimeControl "180+2"]
[EndTime "13:24:51 PDT"]
[Termination "Roenko_Artur won by resignation"]

1. e4 {[%clk 0:02:59.2]} 1... e6 {[%clk 0:02:54.4]} 2. d4 {[%clk 0:02:46.8]}
2... d5 {[%clk 0:02:54.6]} 3. Nd2 {[%clk 0:02:47.6]} 3... Nf6 {[%clk 0:02:54.9]}
4. e5 {[%clk 0:02:47.7]} 4... Nfd7 {[%clk 0:02:56]} 5. Bd3 {[%clk 0:02:49.2]}
5... c5 {[%clk 0:02:56.3]} 6. c3 {[%clk 0:02:50.2]} 6... Nc6 {[%clk 0:02:55.5]}
7. Ne2 {[%clk 0:02:51.2]} 7... cxd4 {[%clk 0:02:55.7]} 8. cxd4 {[%clk
0:02:50.9]} 8... f6 {[%clk 0:02:57.1]} 9. Nf4 {[%clk 0:02:50.8]} 9... Nxd4
{[%clk 0:02:56.7]} 10. Qh5+ {[%clk 0:02:51.8]} 10... Ke7 {[%clk 0:02:57.5]} 11.
Ng6+ {[%clk 0:02:51.9]} 11... hxg6 {[%clk 0:02:57.9]} 12. exf6+ {[%clk
0:02:47.5]} 12... Nxf6 {[%clk 0:02:57.7]} 13. Qxh8 {[%clk 0:02:48.4]} 13... Kf7
{[%clk 0:02:59.4]} 14. O-O {[%clk 0:02:37.3]} 14... e5 {[%clk 0:02:55.7]} 15. b3
{[%clk 0:02:26.4]} 15... e4 {[%clk 0:02:46.5]} 16. Bb1 {[%clk 0:02:25.4]} 16...
Ne2+ {[%clk 0:02:33.9]} 17. Kh1 {[%clk 0:02:25.2]} 17... Bf5 {[%clk 0:02:28.3]}
18. Bb2 {[%clk 0:02:17.2]} 18... d4 {[%clk 0:02:29.1]} 19. Nc4 {[%clk
0:02:13.8]} 19... Qd5 {[%clk 0:02:07.1]} 20. Re1 {[%clk 0:01:52.6]} 20... Nf4
{[%clk 0:02:00.3]} 21. Rd1 {[%clk 0:01:15.9]} 21... Ne6 {[%clk 0:01:23]} 22. Ne3
{[%clk 0:01:13.5]} 22... Qe5 {[%clk 0:01:12.3]} 23. Nxf5 {[%clk 0:01:10.9]}
23... gxf5 {[%clk 0:01:10.8]} 24. a3 {[%clk 0:01:01]} 24... Bd6 {[%clk
0:01:08.7]} 25. Qh3 {[%clk 0:00:52.7]} 25... Ng4 {[%clk 0:01:00.1]} 26. Rf1
{[%clk 0:00:49.1]} 26... Nf4 {[%clk 0:00:39.6]} 27. Qh4 {[%clk 0:00:37.2]} 27...
Be7 {[%clk 0:00:38.4]} 28. Qg3 {[%clk 0:00:35.5]} 28... Rh8 {[%clk 0:00:36.3]}
29. h3 {[%clk 0:00:34.1]} 29... g5 {[%clk 0:00:11]} 30. Bc2 {[%clk 0:00:21.3]}
30... Qd5 {[%clk 0:00:12]} 31. Rae1 {[%clk 0:00:17.9]} 31... e3 {[%clk
0:00:11.7]} 32. f3 {[%clk 0:00:17.4]} 32... Nf2+ {[%clk 0:00:12.7]} 33. Rxf2
{[%clk 0:00:17.9]} 33... exf2 {[%clk 0:00:14.6]} 34. Qxf2 {[%clk 0:00:18.4]}
34... Nxh3 {[%clk 0:00:11.1]} 35. gxh3 {[%clk 0:00:18.4]} 35... Rxh3+ {[%clk
0:00:12.5]} 36. Kg2 {[%clk 0:00:17.7]} 36... g4 {[%clk 0:00:13.2]} 37. Bd1
{[%clk 0:00:17.4]} 37... Bd6 {[%clk 0:00:08.6]} 38. Rh1 {[%clk 0:00:16.6]} 38...
Rxh1 {[%clk 0:00:08.9]} 39. Kxh1 {[%clk 0:00:17.4]} 39... Qxb3 {[%clk
0:00:02.7]} 40. Bxb3+ {[%clk 0:00:17.1]} 1-0

[Event "*** Titled Tuesday Blitz"]
[Site "Chess.com"]
[Date "2019.07.02"]
[Round "2"]
[White "eldur16"]
[Black "VeraNebolsina"]
[Result "1-0"]
[WhiteElo "2577"]
[BlackElo "2341"]
[TimeControl "180+2"]
[EndTime "13:24:55 PDT"]
[Termination "eldur16 won by resignation"]

1. d4 {[%clk 0:03:01.9]} 1... Nf6 {[%clk 0:02:58.6]} 2. c4 {[%clk 0:03:02.8]}
2... g6 {[%clk 0:02:59.5]} 3. Nc3 {[%clk 0:03:03.4]} 3... Bg7 {[%clk 0:03:00.6]}
4. e4 {[%clk 0:03:03.6]} 4... d6 {[%clk 0:03:01.8]} 5. Be2 {[%clk 0:03:04.4]}
5... O-O {[%clk 0:02:59.6]} 6. Be3 {[%clk 0:03:05.2]} 6... Nc6 {[%clk
0:02:43.3]} 7. Nf3 {[%clk 0:02:53.8]} 7... Ng4 {[%clk 0:02:34.9]} 8. Bg5 {[%clk
0:02:53.7]} 8... h6 {[%clk 0:02:34.9]} 9. Bh4 {[%clk 0:02:54.1]} 9... Nf6 {[%clk
0:02:26.2]} 10. O-O {[%clk 0:02:50.6]} 10... e5 {[%clk 0:02:04.2]} 11. d5 {[%clk
0:02:45.1]} 11... Ne7 {[%clk 0:01:54.3]} 12. Nd2 {[%clk 0:02:43.8]} 12... g5
{[%clk 0:01:52]} 13. Bg3 {[%clk 0:02:44]} 13... Ng6 {[%clk 0:01:49.9]} 14. Re1
{[%clk 0:02:39.4]} 14... Nf4 {[%clk 0:01:46.5]} 15. Bf1 {[%clk 0:02:39.8]} 15...
h5 {[%clk 0:01:39.6]} 16. f3 {[%clk 0:02:40.2]} 16... h4 {[%clk 0:01:35.7]} 17.
Bf2 {[%clk 0:02:40.4]} 17... Qe7 {[%clk 0:01:25.4]} 18. b4 {[%clk 0:02:36.1]}
18... Ne8 {[%clk 0:01:10.5]} 19. c5 {[%clk 0:02:33.9]} 19... f5 {[%clk
0:01:03.4]} 20. exf5 {[%clk 0:02:31.2]} 20... Bxf5 {[%clk 0:01:03.3]} 21. Nde4
{[%clk 0:02:31.8]} 21... a6 {[%clk 0:00:57.8]} 22. Rc1 {[%clk 0:02:31.4]} 22...
Rf7 {[%clk 0:00:53]} 23. a4 {[%clk 0:02:28.9]} 23... Bh6 {[%clk 0:00:52]} 24. a5
{[%clk 0:02:19.5]} 24... Nf6 {[%clk 0:00:52.2]} 25. cxd6 {[%clk 0:02:10.3]}
25... cxd6 {[%clk 0:00:52.2]} 26. Nxf6+ {[%clk 0:01:57.9]} 26... Qxf6 {[%clk
0:00:52.8]} 27. h3 {[%clk 0:01:46.7]} 27... Qg6 {[%clk 0:00:53.3]} 28. Ne4
{[%clk 0:01:42.4]} 28... Raf8 {[%clk 0:00:50.5]} 29. Rc3 {[%clk 0:01:29.2]}
29... g4 {[%clk 0:00:47.3]} 30. hxg4 {[%clk 0:01:26.7]} 30... Bxe4 {[%clk
0:00:47.4]} 31. Rxe4 {[%clk 0:01:26.3]} 31... Bg5 {[%clk 0:00:48]} 32. Rec4
{[%clk 0:01:15.6]} 32... Qh6 {[%clk 0:00:48]} 33. Kh2 {[%clk 0:01:10.8]} 33...
Ng6 {[%clk 0:00:47.3]} 34. Rc8 {[%clk 0:01:04]} 34... Bf4+ {[%clk 0:00:46.9]}
35. Kh1 {[%clk 0:01:02.5]} 35... e4 {[%clk 0:00:42.5]} 36. fxe4 {[%clk
0:00:53.9]} 36... Be5 {[%clk 0:00:42.7]} 37. Rxf8+ {[%clk 0:00:45.3]} 37... Qxf8
{[%clk 0:00:42.7]} 38. Rf3 {[%clk 0:00:45.6]} 38... h3 {[%clk 0:00:34.5]} 39.
Rf5 {[%clk 0:00:41.9]} 39... hxg2+ {[%clk 0:00:35]} 40. Bxg2 {[%clk 0:00:42.3]}
40... Qh6+ {[%clk 0:00:36.2]} 41. Kg1 {[%clk 0:00:42.5]} 41... Qh2+ {[%clk
0:00:36.4]} 42. Kf1 {[%clk 0:00:43.4]} 42... Nf4 {[%clk 0:00:35.5]} 43. Qf3
{[%clk 0:00:39.5]} 43... Rc7 {[%clk 0:00:35.7]} 44. Be3 {[%clk 0:00:39.7]} 44...
Rc3 {[%clk 0:00:22.9]} 45. Rxf4 {[%clk 0:00:35.6]} 45... Rxe3 {[%clk 0:00:20]}
46. Rf8+ {[%clk 0:00:35.7]} 46... Kh7 {[%clk 0:00:20.4]} 47. Qf5+ {[%clk
0:00:34.7]} 47... Kh6 {[%clk 0:00:18.6]} 48. g5+ {[%clk 0:00:34]} 48... Kh5
{[%clk 0:00:19.1]} 49. Bf3+ {[%clk 0:00:32.9]} 49... Rxf3+ {[%clk 0:00:17.5]}
50. Qxf3+ {[%clk 0:00:33.8]} 50... Kxg5 {[%clk 0:00:18.1]} 51. Rg8+ {[%clk
0:00:34.2]} 51... Kh6 {[%clk 0:00:16.2]} 52. Qf8+ {[%clk 0:00:34.2]} 1-0

[Event "*** Titled Tuesday Blitz"]
[Site "Chess.com"]
[Date "2019.07.02"]
[Round "2"]
[White "ChesterF"]
[Black "vlad_Sid"]
[Result "0-1"]
[WhiteElo "2360"]
[BlackElo "2540"]
[TimeControl "180+2"]
[EndTime "13:24:58 PDT"]
[Termination "vlad_Sid won by resignation"]

1. e4 {[%clk 0:03:01.9]} 1... c6 {[%clk 0:03:00.4]} 2. d4 {[%clk 0:03:02.6]}
2... d5 {[%clk 0:03:01.9]} 3. e5 {[%clk 0:03:03.5]} 3... Bf5 {[%clk 0:03:02.5]}
4. h4 {[%clk 0:03:03.9]} 4... h5 {[%clk 0:03:02.9]} 5. Bd3 {[%clk 0:03:04.6]}
5... Bxd3 {[%clk 0:03:00.4]} 6. Qxd3 {[%clk 0:03:06]} 6... e6 {[%clk 0:02:58.3]}
7. Bg5 {[%clk 0:03:05.3]} 7... Be7 {[%clk 0:02:52.5]} 8. Nf3 {[%clk 0:03:05.8]}
8... Nh6 {[%clk 0:02:47.1]} 9. Bxh6 {[%clk 0:03:05.6]} 9... Rxh6 {[%clk
0:02:47.7]} 10. Nc3 {[%clk 0:03:06.1]} 10... Nd7 {[%clk 0:02:48.8]} 11. O-O-O
{[%clk 0:03:06.3]} 11... a6 {[%clk 0:02:48.3]} 12. Kb1 {[%clk 0:02:55.7]} 12...
Qc7 {[%clk 0:02:48.5]} 13. Ng5 {[%clk 0:02:53]} 13... Nf8 {[%clk 0:02:39.7]} 14.
f4 {[%clk 0:02:45.5]} 14... f6 {[%clk 0:02:36.4]} 15. exf6 {[%clk 0:02:41.9]}
15... gxf6 {[%clk 0:02:38.3]} 16. Nf3 {[%clk 0:02:42.9]} 16... Qxf4 {[%clk
0:02:36.1]} 17. Rde1 {[%clk 0:02:38.2]} 17... O-O-O {[%clk 0:02:33.3]} 18. Rhf1
{[%clk 0:02:33.3]} 18... Qd6 {[%clk 0:02:28]} 19. Na4 {[%clk 0:02:27.7]} 19...
Nd7 {[%clk 0:02:11]} 20. Qe3 {[%clk 0:02:19.6]} 20... Rh7 {[%clk 0:00:52.6]} 21.
Nc5 {[%clk 0:01:24]} 21... Nxc5 {[%clk 0:00:46.4]} 22. dxc5 {[%clk 0:01:24.5]}
22... Qxc5 {[%clk 0:00:36.2]} 23. Qxe6+ {[%clk 0:01:25.1]} 23... Kb8 {[%clk
0:00:36.1]} 24. c3 {[%clk 0:01:25.8]} 24... Rg7 {[%clk 0:00:34.6]} 25. Nd4
{[%clk 0:01:24.5]} 25... Qd6 {[%clk 0:00:34.5]} 26. Nf5 {[%clk 0:01:21.6]} 26...
Qxe6 {[%clk 0:00:34.9]} 27. Rxe6 {[%clk 0:01:21.7]} 27... Rxg2 {[%clk
0:00:36.5]} 28. Rxe7 {[%clk 0:01:11.3]} 28... c5 {[%clk 0:00:37]} 29. Ne3 {[%clk
0:01:07.2]} 29... Rh2 {[%clk 0:00:35.8]} 30. Rd1 {[%clk 0:00:58.9]} 30... d4
{[%clk 0:00:34.9]} 31. cxd4 {[%clk 0:00:59.4]} 31... Rxd4 {[%clk 0:00:30.3]} 32.
Rc1 {[%clk 0:00:39.3]} 32... Rdxh4 {[%clk 0:00:20.1]} 33. a3 {[%clk 0:00:28.1]}
33... Re2 {[%clk 0:00:20.1]} 34. Rxc5 {[%clk 0:00:25.8]} 34... Rhh2 {[%clk
0:00:14.9]} 35. Rc2 {[%clk 0:00:25.2]} 35... h4 {[%clk 0:00:07.5]} 36. Rxe2
{[%clk 0:00:11.4]} 36... Rxe2 {[%clk 0:00:09.4]} 37. Nf5 {[%clk 0:00:10.6]}
37... Rxe7 {[%clk 0:00:10.4]} 38. Nxe7 {[%clk 0:00:11.5]} 38... h3 {[%clk
0:00:12]} 39. Nf5 {[%clk 0:00:12.5]} 39... Kc7 {[%clk 0:00:11.3]} 40. Ng3 {[%clk
0:00:14]} 40... Kd6 {[%clk 0:00:12.3]} 41. Kc2 {[%clk 0:00:15.7]} 41... Ke5
{[%clk 0:00:14.2]} 42. Kd3 {[%clk 0:00:16.9]} 42... Kf4 {[%clk 0:00:16.1]} 43.
Nf1 {[%clk 0:00:12.3]} 43... Kf3 {[%clk 0:00:17.6]} 44. Kd4 {[%clk 0:00:11.9]}
44... f5 {[%clk 0:00:18.7]} 45. Ke5 {[%clk 0:00:12.5]} 45... f4 {[%clk
0:00:20.2]} 46. Nh2+ {[%clk 0:00:12.9]} 46... Kg3 {[%clk 0:00:19.6]} 47. Nf1+
{[%clk 0:00:14.1]} 47... Kg2 {[%clk 0:00:21.2]} 48. Kxf4 {[%clk 0:00:14.5]}
48... Kxf1 {[%clk 0:00:22.7]} 49. Kg3 {[%clk 0:00:16.4]} 49... Ke2 {[%clk
0:00:24.3]} 50. Kxh3 {[%clk 0:00:18.3]} 50... Kd2 {[%clk 0:00:25.9]} 51. Kg3
{[%clk 0:00:20.2]} 51... Kc2 {[%clk 0:00:27.6]} 0-1

[Event "*** Titled Tuesday Blitz"]
[Site "Chess.com"]
[Date "2019.07.02"]
[Round "2"]
[White "LarissaSteenbekkers"]
[Black "IngOscarArdila"]
[Result "1-0"]
[WhiteElo "1979"]
[BlackElo "2029"]
[TimeControl "180+2"]
[EndTime "13:25:00 PDT"]
[Termination "LarissaSteenbekkers won on time"]

1. e4 {[%clk 0:03:01.9]} 1... e5 {[%clk 0:02:59.7]} 2. Nf3 {[%clk 0:03:00.7]}
2... Nf6 {[%clk 0:03:00.1]} 3. Nxe5 {[%clk 0:02:59.5]} 3... d6 {[%clk
0:03:01.1]} 4. Nf3 {[%clk 0:02:59.2]} 4... Nxe4 {[%clk 0:03:02.6]} 5. d4 {[%clk
0:02:58.6]} 5... d5 {[%clk 0:03:02.9]} 6. Bd3 {[%clk 0:02:57.9]} 6... Be7 {[%clk
0:03:02.8]} 7. O-O {[%clk 0:02:56.9]} 7... Nc6 {[%clk 0:03:03.7]} 8. c4 {[%clk
0:02:55.5]} 8... Nb4 {[%clk 0:03:04.5]} 9. Be2 {[%clk 0:02:54.9]} 9... O-O
{[%clk 0:03:03.5]} 10. Nc3 {[%clk 0:02:53.8]} 10... Nxc3 {[%clk 0:03:00.3]} 11.
bxc3 {[%clk 0:02:51.9]} 11... Nc6 {[%clk 0:03:01.5]} 12. Rb1 {[%clk 0:02:49.1]}
12... b6 {[%clk 0:02:59.5]} 13. Bf4 {[%clk 0:02:41.9]} 13... Bf5 {[%clk
0:02:59.6]} 14. cxd5 {[%clk 0:02:33.1]} 14... Qxd5 {[%clk 0:02:56.7]} 15. Rb5
{[%clk 0:02:27.9]} 15... Qd7 {[%clk 0:02:52.2]} 16. d5 {[%clk 0:02:18]} 16...
Na5 {[%clk 0:02:38.3]} 17. Ne5 {[%clk 0:02:11.8]} 17... Qc8 {[%clk 0:02:38.4]}
18. Nc6 {[%clk 0:02:05.6]} 18... Nxc6 {[%clk 0:02:33.8]} 19. dxc6 {[%clk
0:02:05.1]} 19... Rd8 {[%clk 0:02:22.9]} 20. Qc1 {[%clk 0:01:55.9]} 20... Bf6
{[%clk 0:02:19.3]} 21. Bg5 {[%clk 0:01:50.1]} 21... Rd6 {[%clk 0:02:13]} 22. Bf3
{[%clk 0:01:36.9]} 22... Bg6 {[%clk 0:01:57.6]} 23. Re1 {[%clk 0:01:34.4]} 23...
Qa6 {[%clk 0:01:51.1]} 24. c4 {[%clk 0:01:26]} 24... Qxa2 {[%clk 0:01:45.6]} 25.
Bf4 {[%clk 0:01:23.7]} 25... Re6 {[%clk 0:01:26]} 26. Rxe6 {[%clk 0:01:15.9]}
26... fxe6 {[%clk 0:01:27]} 27. Bxc7 {[%clk 0:01:14.9]} 27... Rc8 {[%clk
0:01:27.5]} 28. Bd6 {[%clk 0:01:06]} 28... Bd4 {[%clk 0:01:17.8]} 29. Bg3 {[%clk
0:00:59.9]} 29... Be8 {[%clk 0:01:02.1]} 30. c7 {[%clk 0:00:56.5]} 30... Bxb5
{[%clk 0:00:51.1]} 31. cxb5 {[%clk 0:00:55.5]} 31... e5 {[%clk 0:00:29.7]} 32.
h3 {[%clk 0:00:36.1]} 32... Qf7 {[%clk 0:00:20.2]} 33. Qc6 {[%clk 0:00:24.4]}
33... Qxc7 {[%clk 0:00:11.9]} 34. Qd5+ {[%clk 0:00:18]} 34... Kh8 {[%clk
0:00:12.5]} 35. Bg4 {[%clk 0:00:17.2]} 35... Rd8 {[%clk 0:00:12.5]} 36. Qe4
{[%clk 0:00:12.9]} 36... g6 {[%clk 0:00:09.3]} 37. h4 {[%clk 0:00:13]} 37... Qg7
{[%clk 0:00:10]} 38. Kh2 {[%clk 0:00:10.4]} 38... Rf8 {[%clk 0:00:09.2]} 39. h5
{[%clk 0:00:07.5]} 39... gxh5 {[%clk 0:00:02.9]} 40. Be6 {[%clk 0:00:07.8]}
40... h6 {[%clk 0:00:03.5]} 41. Bh4 {[%clk 0:00:03.6]} 1-0

[Event "*** Titled Tuesday Blitz"]
[Site "Chess.com"]
[Date "2019.07.02"]
[Round "2"]
[White "VladDobrov"]
[Black "Daniela_Movileanu"]
[Result "1-0"]
[WhiteElo "2839"]
[BlackElo "2502"]
[TimeControl "180+2"]
[EndTime "13:25:04 PDT"]
[Termination "VladDobrov won on time"]

1. d4 {[%clk 0:03:00.9]} 1... Nf6 {[%clk 0:02:57.6]} 2. c4 {[%clk 0:03:01.6]}
2... g6 {[%clk 0:02:58.3]} 3. g3 {[%clk 0:03:02.4]} 3... Bg7 {[%clk 0:02:57.8]}
4. Bg2 {[%clk 0:03:03.3]} 4... d5 {[%clk 0:02:57.9]} 5. cxd5 {[%clk 0:03:03.1]}
5... Nxd5 {[%clk 0:02:49.9]} 6. Nf3 {[%clk 0:03:04.1]} 6... O-O {[%clk
0:02:48.9]} 7. O-O {[%clk 0:03:04.9]} 7... Nb6 {[%clk 0:02:44.7]} 8. Nc3 {[%clk
0:03:05.7]} 8... Nc6 {[%clk 0:02:45.3]} 9. e3 {[%clk 0:03:06.9]} 9... e5 {[%clk
0:02:44.1]} 10. d5 {[%clk 0:03:06.9]} 10... Na5 {[%clk 0:02:44.8]} 11. e4 {[%clk
0:03:02.7]} 11... c6 {[%clk 0:02:44.8]} 12. Bg5 {[%clk 0:02:48.5]} 12... f6
{[%clk 0:02:35.6]} 13. Be3 {[%clk 0:02:48.9]} 13... cxd5 {[%clk 0:02:35]} 14.
exd5 {[%clk 0:02:48.2]} 14... Nac4 {[%clk 0:02:24.2]} 15. Bc5 {[%clk 0:02:47.7]}
15... Rf7 {[%clk 0:02:24]} 16. b3 {[%clk 0:02:45.3]} 16... Nd6 {[%clk 0:02:21]}
17. Re1 {[%clk 0:02:38]} 17... Bg4 {[%clk 0:02:07.5]} 18. Rc1 {[%clk 0:02:03.4]}
18... Rc8 {[%clk 0:01:54.8]} 19. Bb4 {[%clk 0:02:03.1]} 19... f5 {[%clk
0:01:39.6]} 20. h3 {[%clk 0:01:43.2]} 20... Bxf3 {[%clk 0:01:38.9]} 21. Qxf3
{[%clk 0:01:35.1]} 21... e4 {[%clk 0:01:34.6]} 22. Qd1 {[%clk 0:01:23]} 22...
Rd7 {[%clk 0:01:32.9]} 23. f3 {[%clk 0:00:57]} 23... exf3 {[%clk 0:01:09.3]} 24.
Qxf3 {[%clk 0:00:56.2]} 24... Nf7 {[%clk 0:01:09.7]} 25. d6 {[%clk 0:00:36.7]}
25... Nxd6 {[%clk 0:00:56.1]} 26. Nd5 {[%clk 0:00:37]} 26... Rxc1 {[%clk
0:00:44.5]} 27. Rxc1 {[%clk 0:00:36.9]} 27... Ne4 {[%clk 0:00:41.4]} 28. Nf4
{[%clk 0:00:36]} 28... Bb2 {[%clk 0:00:32.7]} 29. Rc2 {[%clk 0:00:35.7]} 29...
Rd1+ {[%clk 0:00:30.5]} 30. Kh2 {[%clk 0:00:29.9]} 30... Bf6 {[%clk 0:00:25.2]}
31. Ba5 {[%clk 0:00:21.7]} 31... Rd7 {[%clk 0:00:17]} 32. Ne2 {[%clk 0:00:22.4]}
32... Qe7 {[%clk 0:00:15.3]} 33. Bxb6 {[%clk 0:00:23.1]} 33... axb6 {[%clk
0:00:16]} 34. Qe3 {[%clk 0:00:24.8]} 34... Qd6 {[%clk 0:00:15.8]} 35. Nf4 {[%clk
0:00:25.5]} 35... Be5 {[%clk 0:00:16.8]} 36. Bxe4 {[%clk 0:00:26.5]} 36... fxe4
{[%clk 0:00:17.5]} 37. Qxe4 {[%clk 0:00:28.1]} 37... Bxf4 {[%clk 0:00:18.4]} 38.
gxf4 {[%clk 0:00:29.6]} 38... Re7 {[%clk 0:00:18]} 39. Qf3 {[%clk 0:00:30]}
39... Rf7 {[%clk 0:00:18.1]} 40. Rc4 {[%clk 0:00:29.6]} 40... Qd2+ {[%clk
0:00:18.9]} 41. Kg3 {[%clk 0:00:30.3]} 41... Qe1+ {[%clk 0:00:19.8]} 42. Qf2
{[%clk 0:00:30.8]} 42... Qe6 {[%clk 0:00:20.5]} 43. h4 {[%clk 0:00:31.5]} 43...
Qf5 {[%clk 0:00:21.6]} 44. Qf3 {[%clk 0:00:32.3]} 44... Qb1 {[%clk 0:00:19.1]}
45. Rc8+ {[%clk 0:00:31.4]} 45... Kg7 {[%clk 0:00:19.8]} 46. Qc3+ {[%clk
0:00:32.8]} 46... Kh6 {[%clk 0:00:20.2]} 47. Qe3 {[%clk 0:00:34.4]} 47... Rf5
{[%clk 0:00:20.7]} 48. Rc7 {[%clk 0:00:31.6]} 48... Qxa2 {[%clk 0:00:20.5]} 49.
Qc3 {[%clk 0:00:28.5]} 1-0